[Event "Croatian Team Cup Final 2022"]
[Site "Vodice"]
[Date "2022.05.20"]
[Round "4.18"]
[White "Plenkovic, Zdenko"]
[Black "Ivic, Mateo"]
[Result "1/2-1/2"]
[ECO "E18"]
[WhiteElo "2375"]
[BlackElo "2187"]
[Annotator "TA"]
[PlyCount "92"]
[EventDate "2022.05.18"]
[EventType "team-tourn"]
[EventCountry "CRO"]
[SourceTitle "playchess.com"]
[Source "ChessBase"]
[SourceQuality "1"]
[TimeControl "40/5400+30:1800+30"]

{[%evp 17,92,27,31,22,24,31,22,18,18,22,18,-4,22,14,18,17,10,12,14,14,17,16,16,16,24,4,27,5,41,40,48,0,25,0,0,0,0,0,0,0,0,-110,0,-214,33,-127,-2,-19,-19,-19,-2,-2,-2,-2,-2,-19,-19,-19,0,0,0,0,0,0,0,0,0,0,0,0,0,0,0,0,0,0,0]} 1. Nf3 {[%emt 0:00:04]} Nf6 {[%emt 0:00:40]} 2. d4 {[%emt 0:00:36]} e6 {[%emt 0:03:20]} 3. g3 {[%emt 0:02:02]} b6 {[%emt 0:02:46]} 4. Bg2 {[%emt 0:00:32]} Bb7 {[%emt 0:00:18]} 5. O-O {[%emt 0:00:28]} Be7 {[%emt 0:00:44]} 6. c4 {[%emt 0:01:11]} O-O {[%emt 0:00:48]} 7. Nc3 {[%emt 0:17:08]} Ne4 {[%emt 0:07:07]} 8. Bd2 $1 {[%emt 0:04:34][%mdl 4] now scores much better than the old 8.Qc2.} Nxd2 {[%emt 0:05:51]} 9. Qxd2 {[%emt 0:01:55]} d6 {[%emt 0:03:22]} 10. Qc2 {[%emt 0:04:16][%cal Of3g5] Ng5! is the strong threat. E18: Queen's Indian: Old Main Line (4 g3 Bb7 5 Bg2 Be7 6 0-0 0-0 7 Nc3).} g6 {[%emt 0:07:24]} 11. Rad1 {[%emt 0:08:53]} Nd7 {[%emt 0:02:30]} 12. e4 {[%emt 0:01:56]} Bf6 {[%emt 0:06:03] [#]} 13. e5 $146 {[%emt 0:03:32]} ({Predecessor:} 13. Rfe1 Qe7 14. h4 Rad8 15. Nd5 exd5 16. exd5 Ne5 17. dxe5 dxe5 18. Rd2 Rfe8 19. Rde2 {1-0 (38) Renman,N (2351)-Kucuksari,K (2329) Sweden 2019}) 13... Bg7 {[%emt 0:04:10]} 14. Rfe1 {[%emt 0:01:27]} dxe5 {[%emt 0:08:20]} (14... Rc8 {seems wilder.} 15. Qa4 Bxf3 16. Bxf3 c5) 15. Nxe5 {[%emt 0:18:19]} Bxg2 {[%emt 0:01:40]} 16. Kxg2 {[%emt 0:00:44]} Nxe5 {[%emt 0:03:57]} 17. dxe5 {[%emt 0:00:13]} Qe7 {[%emt 0:00:43]} 18. f4 {[%emt 0:06:39]} Rfd8 {[%emt 0:04:00]} 19. Ne4 {[%emt 0:00:00]} Rxd1 {[%emt 0:01:38]} 20. Rxd1 {[%emt 0:00:00]} Rd8 {[%emt 0:00:26] Against Qd2} 21. Kf3 {[%emt 0:00:41]} Qe8 {[%emt 0:01:36]} 22. Ke3 {[%emt 0:01:33]} Kf8 {[%emt 0:04:41]} 23. Rxd8 {[%emt 0:02:17]} Qxd8 $14 {[%emt 0:00:09][%mdl 4096] Endgame KQB-KQN} 24. Qa4 {[%emt 0:00:08]} Kg8 {[%emt 0:03:50]} 25. b4 {[%emt 0:04:17]} Bf8 {[%emt 0:01:00]} 26. a3 {[%emt 0:02:51]} Be7 {[%emt 0:00:37] Inhibits Nf6+.} 27. Qxa7 {[%emt 0:07:24]} Qd1 {[%emt 0:01:43]} 28. Qa8+ {[%emt 0:05:02]} Kg7 {[%emt 0:00:33]} 29. h4 {[%emt 0:03:17]} (29. Qe8 $11) 29... c5 {[%emt 0:07:37]} (29... Qb3+ $1 $17 30. Kf2 Qxc4) 30. bxc5 $2 {[%emt 0:01:26] [#]} (30. Qb7 $11 {and White has nothing to worry.}) 30... Bxc5+ {[%emt 0:01:44]} ({Not} 30... bxc5 31. Qb7 $11) (30... Qg1+ $1 $19 31. Kd3 Bxc5 32. Nxc5 Qxg3+ 33. Ke2 bxc5) 31. Nxc5 $17 {[%emt 0:00:06] [#] Really sharp!} bxc5 $11 {[%emt 0:01:17] KQ-KQ} (31... Qe1+ $1 $17 32. Kd4 Qf2+ 33. Kd3 Qxg3+ 34. Ke2 bxc5) 32. Qf3 {[%emt 0:00:35] The position is equal.} Qd4+ {[%emt 0:00:31]} 33. Ke2 {[%emt 0:00:08]} Qxc4+ {[%emt 0:00:17]} 34. Qd3 {[%emt 0:00:45]} Qa2+ {[%emt 0:00:39]} 35. Kd1 $1 {[%emt 0:01:08]} c4 {[%emt 0:00:54]} 36. Qc3 {[%emt 0:00:11]} (36. Qd8 {with more complications.} Qb3+ 37. Kd2 c3+ 38. Ke3) 36... Qb1+ {[%emt 0:02:11]} 37. Kd2 {[%emt 0:00:16]} Qa2+ {[%emt 0:00:30]} 38. Kc1 {[%emt 0:00:06] aiming for Qb2.} Qe2 {[%emt 0:01:36]} 39. a4 {[%emt 0:00:21]} Qa2 {[%emt 0:00:26]} 40. a5 {[%emt 0:00:00]} h5 {[%emt 0:00:00]} 41. Qb4 {[%emt 0:02:55]} Kh7 {[%emt 0:00:34]} 42. Qc3 {[%emt 0:14:29]} Kg7 {[%emt 0:00:35]} 43. Kd1 {[%emt 0:00:19]} Kh7 {[%emt 0:00:25]} 44. Ke1 {[%emt 0:01:16]} Kg7 {[%emt 0:00:20]} 45. Kd1 {[%emt 0:04:12]} Kh7 {[%emt 0:00:22]} 46. Kc1 {[%emt 0:00:41]} Kg7 {[%emt 0:00:12] Weighted Error Value: White=0.25 (precise) /Black=0.19 (very precise)} 1/2-1/2

[Event "Croatian Team Cup Final 2022"]
[Site "Vodice"]
[Date "2022.05.20"]
[Round "4.19"]
[White "Tomas, Ante"]
[Black "Bilobrk, Franjo"]
[Result "1/2-1/2"]
[ECO "E04"]
[WhiteElo "2117"]
[BlackElo "2347"]
[Annotator "TA"]
[PlyCount "40"]
[EventDate "2022.05.18"]
[EventType "team-tourn"]
[EventCountry "CRO"]
[SourceTitle "playchess.com"]
[Source "ChessBase"]
[SourceQuality "1"]
[TimeControl "40/5400+30:1800+30"]

{[%evp 11,40,21,37,27,52,55,93,81,127,141,133,116,118,107,105,108,105,100,106,98,111,110,87,100,86,86,98,47,46,54,63]} 1. d4 {[%emt 0:00:01]} Nf6 {[%emt 0:01:39]} 2. c4 {[%emt 0:00:02]} e6 {[%emt 0:00:08]} 3. g3 {[%emt 0:00:07]} d5 {[%emt 0:00:28]} 4. Nf3 {[%emt 0:00:13]} dxc4 {[%emt 0:00:16]} 5. Bg2 {[%emt 0:02:41]} Bb4+ {[%emt 0:01:17]} 6. Bd2 {[%emt 0:00:45]} a5 {[%emt 0:00:22]} 7. Qc2 {[%emt 0:01:53] E04: Open Catalan: 5 Nf3.} b5 {[%emt 0:02:36]} 8. a4 $1 {[%emt 0:00:09][%cal Ba2a4,Ba4b5][%mdl 32]} c6 {[%emt 0:07:53]} 9. axb5 {[%emt 0:00:20] [#] aiming for Bxb4. White is better.} Bxd2+ {[%emt 0:00:44]} (9... Nd5 $142) 10. Nfxd2 $16 {[%emt 0:00:19]} Nd5 {[%emt 0:01:48]} 11. Qxc4 {[%emt 0:03:20]} O-O {[%emt 0:03:25]} 12. O-O {[%emt 0:25:20]} cxb5 {[%emt 0:07:00]} 13. Qxb5 {[%emt 0:00:12]} Ba6 {[%emt 0:10:25][%cal Bc8a6,Ba6e2,Be2g4,Bg4e6][%mdl 32]} 14. Qxa5 {[%emt 0:14:31]} Qxa5 {[%emt 0:01:07]} 15. Rxa5 {[%emt 0:00:02][%cal Ba1a5,Ba5d5,Bd5d6][%mdl 32]} Nc6 {[%emt 0:00:01]} 16. Bxd5 {[%emt 0:01:26]} exd5 {[%emt 0:01:32]} 17. Rxd5 {[%emt 0:01:40] [#] Nc3 is the strong threat.} Bxe2 {[%emt 0:01:34]} 18. Re1 {[%emt 0:02:54] [#]} Bg4 $146 {[%emt 0:00:26]} ({Predecessor:} 18... Nb4 19. Rd6 Bg4 20. Nc3 Rab8 21. b3 Rfc8 22. Nd5 Nxd5 23. Rxd5 Be6 24. Rde5 Rd8 {1-0 (63) Bacrot,E (2705)-Gharamian,T (2661) Bastia 2012}) 19. f3 {[%emt 0:11:55]} (19. Rd6 $16 Nb4 20. f3) 19... Be6 $14 {[%emt 0:01:10]} 20. Rd6 {[%emt 0:03:57]} Ne7 $1 {[%emt 0:02:31] Weighted Error Value: White=0.06 (flawless) /Black=0.10 (very precise)} 1/2-1/2

[Event "Croatian Team Cup Final 2022"]
[Site "Vodice"]
[Date "2022.05.20"]
[Round "4.20"]
[White "Sinanovic, Muhamed"]
[Black "Sekelja, Marko"]
[Result "1/2-1/2"]
[ECO "A07"]
[WhiteElo "2300"]
[BlackElo "2102"]
[Annotator "TA"]
[PlyCount "72"]
[EventDate "2022.05.18"]
[EventType "team-tourn"]
[EventCountry "CRO"]
[SourceTitle "playchess.com"]
[Source "ChessBase"]
[SourceQuality "1"]
[TimeControl "40/5400+30:1800+30"]

{[%evp 12,72,11,-14,6,16,37,33,42,18,51,18,23,23,30,0,32,8,16,3,18,0,14,18,18,7,7,7,7,7,0,0,32,29,24,0,0,0,0,0,0,0,0,-12,-15,-22,-27,-31,0,0,0,0,0,0,0,0,0,0,0,0,0,0,0]} 1. g3 {[%emt 0:00:18]} d5 {[%emt 0:00:34]} 2. Bg2 {[%emt 0:00:09]} c6 {[%emt 0:02:01]} 3. Nf3 {[%emt 0:00:38]} Nf6 {[%emt 0:00:33]} 4. O-O {[%emt 0:00:08]} Bg4 {[%emt 0:00:18]} 5. d3 {[%emt 0:03:05]} Nbd7 {[%emt 0:01:12]} 6. Nbd2 {[%emt 0:01:07][%cal Bb1d2,Bd2f3,Bf3h4,Bh4f5][%mdl 32]} e6 {[%emt 0:03:17]} 7. b3 {[%emt 0:02:58]} (7. e4 {looks sharper.} Be7 8. h3 Bh5 9. b3) 7... Be7 {[%emt 0:01:12] was the old line (7...Bd6). A07: Réti Opening: New York and Capablanca Systems.} 8. Bb2 {[%emt 0:00:21]} Bxf3 {[%emt 0:02:10]} 9. Nxf3 {[%emt 0:05:37][%cal Oe2e4]} O-O {[%emt 0:00:09] White is slightly better.} 10. Re1 {[%emt 0:04:08] [#]} Qc7 $146 {[%emt 0:00:30]} ({Predecessor:} 10... Qa5 11. c4 Ba3 12. Qc2 Bxb2 13. Qxb2 Rad8 14. b4 Qc7 15. e4 dxe4 16. dxe4 Nb6 {½-½ (66) Moeller,P-Jacobs,H Mecklenburg VP 1996}) 11. e4 {[%emt 0:01:56]} dxe4 {[%emt 0:01:58]} 12. dxe4 {[%emt 0:00:08]} e5 {[%emt 0:00:46]} 13. Qc1 {[%emt 0:09:03]} h6 {[%emt 0:05:37]} 14. Nh4 {[%emt 0:01:35]} Rfe8 {[%emt 0:00:16]} 15. Nf5 {[%emt 0:00:13]} Bf8 {[%emt 0:00:25]} 16. Bc3 {[%emt 0:05:08][%cal Bb2c3,Bc3d2,Bd2e3][%mdl 32]} Rad8 {[%emt 0:01:54]} 17. a4 {[%emt 0:03:36]} a5 {[%emt 0:10:49]} 18. Bd2 {[%emt 0:04:30]} Nc5 {[%emt 0:08:10]} 19. f3 {[%emt 0:06:00]} Ne6 {[%emt 0:01:52]} 20. Bf1 {[%emt 0:04:52]} Nd4 {[%emt 0:05:05]} 21. Nxd4 {[%emt 0:00:13] [#] aiming for Nf5.} Rxd4 {[%emt 0:00:15]} 22. Be3 {[%emt 0:03:39]} Rdd8 {[%emt 0:01:09]} 23. Bh3 {[%emt 0:04:54]} Nd7 {[%emt 0:07:57]} 24. Bxd7 {[%emt 0:03:20]} Rxd7 {[%emt 0:00:35]} 25. Rd1 {[%emt 0:03:58]} Red8 {[%emt 0:02:08]} 26. Rxd7 {[%emt 0:00:08]} Rxd7 {[%emt 0:00:21]} 27. Qf1 {[%emt 0:04:51]} Qd8 {[%emt 0:02:57]} 28. Qc4 {[%emt 0:06:39]} Bb4 {[%emt 0:02:00][%cal Bf8b4,Bb4d2,Bd2g5,Bg5e7][%mdl 32]} 29. Kg2 {[%emt 0:00:32]} Bd2 {[%emt 0:04:45]} 30. Bf2 {[%emt 0:00:36] The position is equal.} Bg5 {[%emt 0:00:08]} 31. h4 {[%emt 0:00:14]} Be7 {[%emt 0:00:33]} 32. Be3 {[%emt 0:02:38] Inhibits Rd2+.} Bb4 {[%emt 0:01:45]} 33. Rf1 {[%emt 0:00:26]} Qe8 {[%emt 0:07:32]} 34. Qe2 {[%emt 0:06:25]} Qd8 {[%emt 0:00:43]} 35. Qc4 {[%emt 0:00:19]} Qe8 {[%emt 0:01:00]} 36. Qe2 {[%emt 0:02:25]} Qd8 {[%emt 0:00:13] Weighted Error Value: White=0.07 (flawless) /Black=0.07 (flawless)} 1/2-1/2

[Event "Croatian Team Cup Final 2022"]
[Site "Vodice"]
[Date "2022.05.20"]
[Round "4.21"]
[White "Tica, Sven"]
[Black "Cop, Tomislav"]
[Result "1-0"]
[ECO "A48"]
[WhiteElo "2438"]
[BlackElo "2304"]
[Annotator "TA"]
[PlyCount "115"]
[EventDate "2022.05.18"]
[EventType "team-tourn"]
[EventCountry "CRO"]
[SourceTitle "playchess.com"]
[Source "ChessBase"]
[SourceQuality "1"]
[TimeControl "40/5400+30:1800+30"]

{[%evp 24,115,20,0,14,-1,0,-6,0,0,0,0,0,0,0,0,0,-30,35,31,33,12,53,36,45,61,50,26,129,114,127,49,110,113,113,98,146,173,191,123,103,29,21,22,22,22,22,18,178,178,181,181,175,181,177,181,250,239,182,133,129,127,130,122,150,148,147,119,173,170,180,180,181,181,424,417,406,391,435,425,409,388,29960,29964,29956,29958,29955,29946,29985,29982,29982,29958,29996,29997]} 1. Nf3 {[%emt 0:00:04]} Nf6 {[%emt 0:01:27]} 2. d4 {[%emt 0:00:07]} g6 {[%emt 0:00:06]} 3. Nbd2 {[%emt 0:00:04]} c5 {[%emt 0:02:01]} 4. dxc5 {[%emt 0:00:14]} Bg7 {[%emt 0:00:22]} 5. e3 {[%emt 0:02:15]} Qa5 {[%emt 0:01:16]} 6. a3 {[%emt 0:00:07]} Qxc5 {[%emt 0:00:07]} 7. b4 {[%emt 0:00:05]} Qc7 {[%emt 0:03:06]} 8. Bb2 {[%emt 0:00:06]} O-O {[%emt 0:00:17]} 9. c4 {[%emt 0:00:06]} b6 {[%emt 0:02:13]} 10. Be2 {[%emt 0:00:07]} Bb7 {[%emt 0:00:12]} 11. O-O {[%emt 0:00:07]} d6 {[%emt 0:00:42]} 12. Rc1 {[%emt 0:00:15]} Nbd7 {[%emt 0:00:44]} 13. Nd4 {[%emt 0:00:15]} Rac8 {[%emt 0:07:07] A48: 1 d4 Nf6 2 Nf3 g6: Torre, London and Colle Systems.} 14. Bf3 {[%emt 0:01:21]} a6 {[%emt 0:07:58]} 15. b5 {[%emt 0:23:56] [#]} Ne5 $146 {[%emt 0:06:32] The position is equal.} ({Predecessor:} 15... e5 16. Bxb7 Qxb7 17. Nc6 Nb8 18. Nxb8 Rxb8 19. Qf3 Qxf3 20. gxf3 Ra8 21. Rfd1 axb5 22. cxb5 {1-0 (41) Nisipeanu,L (2671)-Ivic,V (2571) Reykjavik 2021}) 16. Bxb7 {[%emt 0:02:13]} Qxb7 {[%emt 0:00:02]} 17. Qe2 {[%emt 0:00:37]} axb5 {[%emt 0:21:04]} 18. cxb5 {[%emt 0:01:01]} Ne4 {[%emt 0:01:27]} 19. Nxe4 {[%emt 0:06:44]} Qxe4 {[%emt 0:01:01]} 20. Rfd1 {[%emt 0:00:13]} (20. f3 $5 {[%cal Rf3e4]} Qd3 21. Qxd3 Nxd3 22. Rxc8 Rxc8 23. Nc6 $1 $11) 20... h5 {[%emt 0:07:56]} (20... Rxc1 $11 21. Bxc1 Rc8) 21. f3 $1 $14 {[%emt 0:08:51][%cal Bf2f3,Bf3f4][%mdl 32]} Qb7 {[%emt 0:01:55]} 22. f4 {[%emt 0:00:39]} Ng4 {[%emt 0:07:37]} 23. h3 {[%emt 0:00:08]} Rxc1 {[%emt 0:01:37]} 24. Rxc1 {[%emt 0:03:56]} Nf6 {[%emt 0:00:04]} 25. Nc6 {[%emt 0:01:19]} Ra8 {[%emt 0:04:07]} (25... e6 $11 {keeps the balance.}) 26. e4 $16 {[%emt 0:03:21]} e6 {[%emt 0:08:57]} 27. Bd4 {[%emt 0:10:04]} (27. f5 $16) 27... Ne8 {[%emt 0:04:46]} ({Black should play} 27... Nd7 $14) 28. Bxg7 {[%emt 0:01:32] 0x0.000a5ab2bb5bdp-1022s more active pieces.} Nxg7 {[%emt 0:00:57]} 29. Qb2 {[%emt 0:01:08]} d5 {[%emt 0:02:31]} (29... Kh7 $142) 30. exd5 {[%emt 0:03:55]} exd5 {[%emt 0:00:02] [#]} 31. Qf6 {[%emt 0:00:10]} (31. Re1 $1 $18) 31... Re8 {[%emt 0:00:38]} 32. Rd1 {[%emt 0:03:30]} (32. Ne5 $16) 32... Qd7 $11 {[%emt 0:01:52]} 33. Ne5 {[%emt 0:00:26][%cal Bc6e5,Be5d7,Bd7b6,Bb6d5,Bd5b4][%mdl 32]} Qe6 {[%emt 0:01:24]} 34. Qxe6 {[%emt 0:00:54]} Nxe6 {[%emt 0:00:06][%mdl 4096] Endgame KRN-KRN} 35. Nd7 {[%emt 0:00:05] Strongly threatening Nf6+.} Kg7 {[%emt 0:01:38] Against Nf6} (35... Re7 $1 $11 {and Black is okay.} 36. Rxd5 Nxf4) 36. a4 $18 {[%emt 0:02:21]} ({Not} 36. Nxb6 Rb8 37. Nxd5 Rxb5 $11) 36... Nxf4 {[%emt 0:01:22]} 37. Nxb6 {[%emt 0:00:07]} d4 {[%emt 0:00:40]} 38. Kf1 {[%emt 0:01:35]} Ne6 {[%emt 0:01:29]} 39. Nd5 {[%emt 0:03:51] aiming for a5.} Rd8 {[%emt 0:00:59]} (39... Ra8 $142) 40. Nb4 {[%emt 0:00:00]} Ra8 {[%emt 0:00:00]} 41. Ra1 {[%emt 0:03:11]} (41. Na6 $18) 41... Nc5 $16 {[%emt 0:06:38]} 42. a5 {[%emt 0:00:48]} Nb3 {[%emt 0:05:46][%csl LRa1,LRa5]} 43. Ra3 {[%emt 0:32:49]} Rxa5 {[%emt 0:05:34]} 44. Rxb3 {[%emt 0:00:13]} Rxb5 {[%emt 0:00:02] KRN-KR} 45. Ke2 {[%emt 0:00:31]} h4 {[%emt 0:03:11]} (45... Re5+ $16 46. Kf3 h4) 46. Kd3 {[%emt 0:00:15]} Rg5 {[%emt 0:04:30]} 47. Rb2 {[%emt 0:00:05]} ({Much less strong is} 47. Kxd4 Rxg2 48. Nd5 Kh6 $16) 47... Rg3+ {[%emt 0:00:33]} 48. Kxd4 {[%emt 0:00:06]} g5 $2 {[%emt 0:01:18]} (48... Ra3 49. Nd5 Ra7) 49. Nd5 $18 {[%emt 0:00:05]} Ra3 {[%emt 0:05:27]} 50. Ke4 {[%emt 0:02:25]} Ra5 {[%emt 0:01:17]} 51. Rb6 {[%emt 0:00:50]} Ra2 {[%emt 0:00:51]} 52. Ne3 {[%emt 0:00:02]} Rf2 $2 {[%emt 0:01:03]} (52... f6 $18 53. Ng4 Ra4+ 54. Kd5 Rf4) 53. Nf5+ {[%emt 0:01:19] White mates.} Kg8 {[%emt 0:00:49]} 54. Ke5 {[%emt 0:01:46]} Rxg2 {[%emt 0:00:52]} 55. Kf6 {[%emt 0:00:23]} g4 {[%emt 0:00:21]} 56. Rb8+ {[%emt 0:00:18]} Kh7 {[%emt 0:00:01]} 57. Rb4 {[%emt 0:00:08]} gxh3 {[%emt 0:00:58]} 58. Rxh4+ {[%emt 0:00:09] Weighted Error Value: White=0.11 (very precise) /Black=0.45} 1-0

[Event "Croatian Team Cup Final 2022"]
[Site "Vodice"]
[Date "2022.05.21"]
[Round "5.1"]
[White "Kozul, Zdenko"]
[Black "Saric, Ivan"]
[Result "1/2-1/2"]
[ECO "D43"]
[WhiteElo "2621"]
[BlackElo "2693"]
[Annotator "TA"]
[PlyCount "82"]
[EventDate "2022.05.18"]
[EventType "team-tourn"]
[EventCountry "CRO"]
[SourceTitle "playchess.com"]
[Source "ChessBase"]
[SourceQuality "1"]
[TimeControl "40/5400+30:1800+30"]

{[%evp 16,82,14,8,6,7,0,-8,39,43,45,49,89,-9,-10,-42,93,104,61,66,160,165,157,162,149,41,185,177,558,47,23,0,0,0,0,0,0,0,0,0,0,0,8,8,8,8,8,8,8,8,8,8,21,0,0,0,0,0,0,0,0,0,0,0,0,0,0,0,253]} 1. d4 {[%emt 0:00:43]} d5 {[%emt 0:00:04]} 2. c4 {[%emt 0:00:11]} c6 {[%emt 0:00:03]} 3. Nf3 {[%emt 0:01:19]} Nf6 {[%emt 0:00:05]} 4. Nc3 {[%emt 0:00:07]} e6 {[%emt 0:00:41]} 5. Bg5 {[%emt 0:01:40][%cal Bc1g5,Bg5h4,Bh4g3][%mdl 32]} h6 {[%emt 0:00:06]} 6. Bh4 {[%emt 0:00:19]} dxc4 {[%emt 0:00:37]} 7. e4 {[%emt 0:01:15]} g5 {[%emt 0:00:14]} 8. Bg3 {[%emt 0:00:07]} b5 {[%emt 0:00:02]} 9. Be2 {[%emt 0:02:02][%mdl 1024] White has compensation.} Bg7 {[%emt 0:03:19] D43: Semi-Slav: 5 Bg5 h6.} 10. O-O {[%emt 0:16:46]} O-O {[%emt 0:01:57]} 11. a4 {[%emt 0:02:58] [#]} b4 $146 {[%emt 0:04:00]} (11... g4 $11 12. Ne1 b4) ({Predecessor:} 11... a6 12. axb5 cxb5 13. e5 Nh5 14. Nxb5 axb5 15. Rxa8 Bb7 16. Ra1 Nc6 17. h3 Nxg3 18. fxg3 {½-½ (66) Moiseenko,A (2706)-Grachev,B (2705) Sochi 2012}) 12. e5 $1 $14 {[%emt 0:00:19]} Nh5 {[%emt 0:00:58]} 13. Ne4 {[%emt 0:01:45]} c5 {[%emt 0:00:48]} 14. Rc1 {[%emt 0:11:09]} ({Of course not} 14. dxc5 Nxg3 15. hxg3 (15. Nxg3 Bb7 $11) (15. fxg3 Nd7 $11) 15... Nd7 $14) ({White should play} 14. Nxc5 $16 Nxg3 15. hxg3 (15. fxg3 g4 $11)) 14... Nxg3 {[%emt 0:02:48]} 15. hxg3 {[%emt 0:03:07]} g4 {[%emt 0:08:00]} (15... cxd4 $1 $15 {keeps the upper hand.} 16. Rxc4 Nd7) 16. Nf6+ $16 {[%emt 0:04:25]} Bxf6 {[%emt 0:01:24]} 17. exf6 {[%emt 0:00:06]} Bb7 {[%emt 0:05:19] [#]} (17... h5 $14) 18. Ne5 $1 {[%emt 0:26:03]} Qd5 {[%emt 0:05:16][%csl Gb7][%cal Rd5g2]} 19. f3 {[%emt 0:00:26] White is more active.} Nc6 {[%emt 0:11:57] [#]} 20. Nxg4 {[%emt 0:04:58]} (20. Nxc6 $1 $16 Bxc6 21. Rxc4 gxf3 22. Rxf3) 20... Qxd4+ {[%emt 0:03:32]} ({Better is} 20... h5 $14 21. Ne3 Qg5) 21. Qxd4 $18 {[%emt 0:01:19]} cxd4 $2 {[%emt 0:00:11]} (21... Nxd4 {is more resistant.} 22. Bxc4 h5) 22. Bxc4 $2 {[%emt 0:03:08]} (22. Kf2 $18) 22... h5 $14 {[%emt 0:00:14]} 23. Bb5 {[%emt 0:05:14][%cal Oc1c5]} (23. Nf2 $5 {[%cal Rc4a2]}) 23... hxg4 {[%emt 0:02:09] The position is equal.} 24. Bxc6 {[%emt 0:00:06]} Bxc6 {[%emt 0:00:11]} 25. Rxc6 $11 {[%emt 0:00:06][%mdl 4096] Endgame KRR-KRR} Rac8 {[%emt 0:00:31]} 26. Rfc1 {[%emt 0:03:02]} Rxc6 {[%emt 0:00:39]} 27. Rxc6 {[%emt 0:00:02] KR-KR} Rd8 {[%emt 0:05:57] Inhibits Rd6.} 28. Kf2 {[%emt 0:00:08]} Rd5 {[%emt 0:03:40]} 29. Ke2 {[%emt 0:01:34]} a5 {[%emt 0:00:50]} 30. Rc7 {[%emt 0:01:15]} Rh5 {[%emt 0:22:58]} 31. Ra7 {[%emt 0:02:57]} Rh2 {[%emt 0:01:33]} 32. fxg4 {[%emt 0:05:04]} Rxg2+ {[%emt 0:00:04]} 33. Kd3 {[%emt 0:00:15]} Rxg3+ {[%emt 0:01:00]} 34. Kc4 {[%emt 0:00:15]} (34. Kxd4 $5 {[%cal Ra7a5]} Rxg4+ 35. Kc5 $11) 34... Rxg4 {[%emt 0:04:33]} 35. Rxa5 {[%emt 0:00:06] Black must now prevent Ra8+.} Kh7 {[%emt 0:00:32]} 36. Ra8 {[%emt 0:01:30] aiming for Rf8.} Rg2 {[%emt 0:00:14]} 37. Kb3 {[%emt 0:01:00]} d3 {[%emt 0:01:55] ...e5 is the strong threat.} 38. Rf8 {[%emt 0:01:51]} d2 {[%emt 0:00:38]} 39. Rxf7+ {[%emt 0:00:08]} Kg6 {[%emt 0:00:07]} 40. Rd7 {[%emt 0:00:00] Strongly threatening f7.} Kxf6 {[%emt 0:00:00]} 41. Kxb4 {[%emt 0:05:47] Threatens to win with Kc3.} Ke5 $2 {[%emt 0:00:49][%mdl 40960] Weighted Error Value: White=0.27 (precise) /Black=0.39. An unexpected result.} (41... d1=R $11 42. Rxd1 Rxb2+ 43. Kc3 Rh2) 1/2-1/2

[Event "Croatian Team Cup Final 2022"]
[Site "Vodice"]
[Date "2022.05.21"]
[Round "5.2"]
[White "Markus, Robert"]
[Black "Stevic, Hrvoje"]
[Result "1/2-1/2"]
[ECO "D28"]
[WhiteElo "2613"]
[BlackElo "2558"]
[Annotator "TA"]
[PlyCount "61"]
[EventDate "2022.05.18"]
[EventType "team-tourn"]
[EventCountry "CRO"]
[SourceTitle "playchess.com"]
[Source "ChessBase"]
[SourceQuality "1"]
[TimeControl "40/5400+30:1800+30"]

{[%evp 16,61,14,15,19,2,16,6,7,20,27,14,20,25,14,27,19,34,30,33,28,8,31,11,14,3,8,0,0,0,0,0,0,0,0,0,0,0,0,0,0,0,0,0,0,0,0,0]} 1. d4 {[%emt 0:00:05]} d5 {[%emt 0:00:31]} 2. c4 {[%emt 0:00:10]} dxc4 {[%emt 0:00:06]} 3. Nf3 {[%emt 0:00:07]} Nf6 {[%emt 0:00:15]} 4. e3 {[%emt 0:00:12]} e6 {[%emt 0:00:13]} 5. Bxc4 {[%emt 0:00:11]} c5 {[%emt 0:00:08]} 6. Qe2 {[%emt 0:00:25]} a6 {[%emt 0:00:22]} 7. dxc5 {[%emt 0:00:17]} Bxc5 {[%emt 0:00:10]} 8. O-O {[%emt 0:01:52]} Nc6 {[%emt 0:06:44]} 9. a3 {[%emt 0:05:13]} Bd6 {[%emt 0:02:58] D28: Queen's Gambit Accepted: Classical main line: 7 Qe2 with early ...Nc6.} 10. Nbd2 {[%emt 0:05:05]} O-O {[%emt 0:04:29]} 11. b4 {[%emt 0:07:18]} b5 {[%emt 0:08:21]} 12. Bb3 {[%emt 0:00:52] [#]} Ne5 $146 {[%emt 0:03:55]} ({Predecessor:} 12... a5 13. Bb2 axb4 14. axb4 Rxa1 15. Rxa1 Qb6 16. Bxf6 gxf6 17. Ne4 Be7 18. Qb2 e5 {½-½ (29) Perez Lopez,A (2349)-Dessaules,P (2374) ICCF email 2017}) 13. Bb2 {[%emt 0:04:39]} Nxf3+ {[%emt 0:02:15]} 14. Qxf3 {[%emt 0:03:54]} Ra7 {[%emt 0:00:37]} 15. Ne4 {[%emt 0:08:37]} Nxe4 {[%emt 0:03:30]} 16. Qxe4 {[%emt 0:00:14]} Rd7 {[%emt 0:09:06]} 17. Qg4 {[%emt 0:03:07][%csl Gb2][%cal Rg4g7] [#]} g6 {[%emt 0:01:26]} 18. Rfd1 {[%emt 0:06:05]} h5 {[%emt 0:07:14]} 19. Qe2 {[%emt 0:06:14]} Bb7 {[%emt 0:02:18] The position is equal.} 20. h3 {[%emt 0:01:14]} Qe7 {[%emt 0:03:00]} 21. Rd2 {[%emt 0:01:52]} Rfd8 {[%emt 0:01:17][%cal Od6h2] [#] aiming for ...Bh2+!} 22. Rad1 {[%emt 0:00:11]} Bc7 {[%emt 0:02:04]} ({Don't play} 22... Qg5 23. f4 Qh4 24. Qf2 $14) 23. f3 {[%emt 0:02:24]} Bb6 {[%emt 0:03:20]} 24. Bd4 {[%emt 0:01:24]} Bxd4 {[%emt 0:00:24]} 25. Rxd4 {[%emt 0:00:06]} Rxd4 {[%emt 0:00:47]} 26. Rxd4 {[%emt 0:00:07]} Rxd4 {[%emt 0:00:05]} 27. exd4 $11 {[%emt 0:00:06] KQB-KQB} Qd8 {[%emt 0:00:56]} 28. Qe5 {[%emt 0:00:44]} Bd5 {[%emt 0:00:29]} 29. Bxd5 {[%emt 0:01:13]} Qxd5 {[%emt 0:00:14]} 30. Qxd5 {[%emt 0:00:40]} exd5 {[%emt 0:00:07]} 31. g4 {[%emt 0:00:04] Weighted Error Value: White=0.04 (flawless) /Black=0.03 (flawless)} 1/2-1/2